fUSD/lending_fUSD_20260405
["ID","MTS","AMOUNT","RATE_DAILY","PERIOD"]
[419808512,1775392244686,-500.0,0.00013698,2]
[419808513,1775392244695,-500.0,0.00013698,2]
[419808514,1775392244704,-500.0,0.00013698,2]
[419808515,1775392244713,-500.0,0.00013698,2]
[419808516,1775392244722,-500.0,0.00013698,2]
[419808517,1775392244733,-500.0,0.00013698,2]
[419808518,1775392244743,-500.0,0.00013698,2]
[419808519,1775392244754,-390.77484076,0.00013698,2]
[419808520,1775392244763,-500.0,0.00013698,2]
[419808521,1775392244772,-500.0,0.00013698,2]
[419808522,1775392244782,-500.0,0.00013698,2]
[419808523,1775392244791,-500.0,0.00013698,2]
[419808524,1775392244800,-500.0,0.00013698,2]
[419808525,1775392244809,-500.0,0.00013698,2]
[419808526,1775392244820,-500.0,0.00013698,2]
[419808527,1775392244831,-500.0,0.00013698,2]
[419808528,1775392244842,-500.0,0.00013698,2]
[419808529,1775392244851,-500.0,0.00013698,2]
[419808530,1775392244862,-500.0,0.00013698,2]
[419808531,1775392244871,-500.0,0.00013698,2]
[419808532,1775392244880,-500.0,0.00013698,2]
[419808533,1775392244890,-500.0,0.00013698,2]
[419808534,1775392244899,-500.0,0.00013698,2]
[419808535,1775392244910,-500.0,0.00013698,2]
[419808536,1775392244920,-500.0,0.00013698,2]
[419808537,1775392244929,-500.0,0.00013698,2]
[419808538,1775392244940,-500.0,0.00013698,2]
[419808539,1775392244952,-500.0,0.00013698,2]
[419808540,1775392244962,-500.0,0.00013698,2]
[419808541,1775392244971,-500.0,0.00013698,2]
[419808542,1775392244982,-500.0,0.00013698,2]
[419808543,1775392244992,-500.0,0.00013698,2]
[419808544,1775392245003,-500.0,0.00013698,2]
[419808545,1775392245012,-500.0,0.00013698,2]
[419808546,1775392245022,-500.0,0.00013698,2]
[419808547,1775392245032,-500.0,0.00013698,2]
[419808548,1775392245041,-500.0,0.00013698,2]
[419808549,1775392245051,-500.0,0.00013698,2]
[419808550,1775392245060,-500.0,0.00013698,2]
[419808551,1775392245069,-500.0,0.00013698,2]
[419808552,1775392245079,-500.0,0.00013698,2]
[419808553,1775392245089,-500.0,0.00013698,2]
[419808554,1775392245099,-500.0,0.00013698,2]
[419808555,1775392245108,-420.19790691,0.00013698,2]
[419808556,1775392245117,-712.58,0.00013698,2]
[419808557,1775392245126,-712.58,0.00013698,2]
[419808558,1775392245136,-712.58,0.00013698,2]
[419808559,1775392245145,-712.58,0.00013698,2]
[419808560,1775392245154,-712.58,0.00013698,2]
[419808561,1775392245163,-712.58,0.00013698,2]
[419808562,1775392245172,-712.58,0.00013698,2]
[419808563,1775392245182,-712.58,0.00013698,2]
[419808564,1775392245191,-712.58,0.00013698,2]
[419808565,1775392245200,-712.58,0.00013698,2]
[419808566,1775392245210,-712.58,0.00013698,2]
[419808567,1775392245219,-712.58,0.00013698,2]
[419808568,1775392245228,-712.58,0.00013698,2]
[419808569,1775392245238,-712.58,0.00013698,2]
[419808570,1775392245247,-712.58,0.00013698,2]
[419808571,1775392245255,-712.58,0.00013698,2]
[419808572,1775392245264,-712.58,0.00013698,2]
[419808573,1775392245273,-712.58,0.00013698,2]
[419808574,1775392245283,-712.58,0.00013698,2]
[419808575,1775392245292,-963.2,0.00013698,2]
[419808576,1775392245302,-963.2,0.00013698,2]
[419808577,1775392245311,-963.2,0.00013698,2]
[419808578,1775392245320,-963.2,0.00013698,2]
[419808579,1775392245329,-963.2,0.00013698,2]
[419808580,1775392245338,-963.2,0.00013698,2]
[419808581,1775392245347,-963.2,0.00013698,2]
[419808582,1775392245356,-963.2,0.00013698,2]
[419808583,1775392245366,-963.2,0.00013698,2]
[419808584,1775392245376,-963.2,0.00013698,2]
[419808585,1775392245386,-963.2,0.00013698,2]
[419808586,1775392245395,-963.2,0.00013698,2]
[419808587,1775392245405,-963.2,0.00013698,2]
[419808588,1775392245414,-963.2,0.00013698,2]
[419808590,1775392245423,-963.2,0.00013698,2]
[419808591,1775392245432,-963.2,0.00013698,2]
[419808592,1775392245442,-963.2,0.00013698,2]
[419808593,1775392245451,-963.2,0.00013698,2]
[419808594,1775392245460,-963.2,0.00013698,2]
[419808595,1775392245470,-500.0,0.00013698,2]
[419808596,1775392245479,-500.0,0.00013698,2]
[419808597,1775392245489,-500.0,0.00013698,2]
[419808598,1775392245499,-500.0,0.00013698,2]
[419808599,1775392245511,-500.0,0.00013698,2]
[419808600,1775392245522,-500.0,0.00013698,2]
[419808601,1775392245532,-500.0,0.00013698,2]
[419808602,1775392245542,-500.0,0.00013698,2]
[419808603,1775392245552,-500.0,0.00013698,2]
[419808604,1775392245561,-500.0,0.00013698,2]
[419808605,1775392245571,-500.0,0.00013698,2]
[419808606,1775392245580,-500.0,0.00013698,2]
[419808608,1775392245589,-500.0,0.00013698,2]
[419808609,1775392245599,-500.0,0.00013698,2]
[419808611,1775392245608,-573.05086874,0.00013698,2]
[419808612,1775392245618,-551.83212521,0.00013698,2]
[419808613,1775392245627,-500.0,0.00013698,2]
[419808614,1775392245636,-500.0,0.00013698,2]
[419808615,1775392245645,-500.0,0.00013698,2]
[419808616,1775392245655,-500.0,0.00013698,2]
[419808617,1775392245664,-500.0,0.00013698,2]
[419808618,1775392245674,-500.0,0.00013698,2]
[419808619,1775392245683,-500.0,0.00013698,2]
[419808620,1775392245693,-500.0,0.00013698,2]
[419808621,1775392245702,-500.0,0.00013698,2]
[419808622,1775392245712,-500.0,0.00013698,2]
[419808623,1775392245722,-500.0,0.00013698,2]
[419808624,1775392245732,-500.0,0.00013698,2]
[419808625,1775392245742,-500.0,0.00013698,2]
[419808626,1775392245752,-500.0,0.00013698,2]
[419808627,1775392245761,-500.0,0.00013698,2]
[419808628,1775392245770,-500.0,0.00013698,2]
[419808629,1775392245780,-500.0,0.00013698,2]
[419808630,1775392245789,-500.0,0.00013698,2]
[419808631,1775392245798,-499.56,0.00013698,2]
[419808632,1775392245807,-500.0,0.00013698,2]
[419808633,1775392245816,-500.0,0.00013698,2]
[419808634,1775392245826,-500.0,0.00013698,2]
[419808635,1775392245836,-500.0,0.00013698,2]
[419808636,1775392245846,-500.0,0.00013698,2]
[419808637,1775392245856,-500.0,0.00013698,2]
[419808638,1775392245865,-500.0,0.00013698,2]
[419808639,1775392245875,-500.0,0.00013698,2]
[419808640,1775392245884,-500.0,0.00013698,2]
[419808641,1775392245894,-500.0,0.00013698,2]
[419808642,1775392245903,-500.0,0.00013698,2]
[419808643,1775392245914,-500.0,0.00013698,2]
[419808644,1775392245923,-500.0,0.00013698,2]
[419808645,1775392245932,-500.0,0.00013698,2]
[419808646,1775392245942,-500.0,0.00013698,2]
[419808647,1775392245953,-500.0,0.00013698,2]
[419808648,1775392245962,-500.0,0.00013698,2]
[419808649,1775392245972,-500.0,0.00013698,2]
[419808650,1775392245982,-500.0,0.00013698,2]
[419808651,1775392245991,-500.0,0.00013698,2]
[419808652,1775392246002,-500.0,0.00013698,2]
[419808653,1775392246012,-500.0,0.00013698,2]
[419808654,1775392246022,-500.0,0.00013698,2]
[419808655,1775392246032,-500.0,0.00013698,2]
[419808656,1775392246042,-500.0,0.00013698,2]
[419808657,1775392246052,-500.0,0.00013698,2]
[419808658,1775392246061,-500.0,0.00013698,2]
[419808659,1775392246071,-500.0,0.00013698,2]
[419808660,1775392246081,-500.0,0.00013698,2]
[419808661,1775392246091,-500.0,0.00013698,2]
[419808662,1775392246102,-500.0,0.00013698,2]
[419808663,1775392246112,-500.0,0.00013698,2]
[419808664,1775392246122,-568.42076477,0.00013698,2]
[419808665,1775392246132,-150.0,0.00013699,2]
[419808666,1775392246142,-150.0,0.00013699,2]
[419808667,1775392246152,-150.0,0.00013699,2]
[419808668,1775392246163,-150.0,0.00013699,2]
[419808669,1775392246173,-150.0,0.00013699,2]
[419808670,1775392246184,-150.0,0.00013699,2]
[419808671,1775392246193,-150.0,0.00013699,2]
[419808672,1775392246203,-150.0,0.00013699,2]
[419808673,1775392246212,-476.08,0.00013699,2]
[419808674,1775392246222,-396.73,0.00013699,2]
[419808675,1775392246232,-330.61,0.00013699,2]
[419808676,1775392246242,-275.51,0.00013699,2]
[419808677,1775392246252,-229.59,0.00013699,2]
[419808678,1775392246262,-191.33,0.00013699,2]
[419808679,1775392246271,-159.44,0.00013699,2]
[419808680,1775392246281,-797.21,0.00013699,2]
[419808681,1775392246291,-161.91170216,0.00013699,2]
[419808682,1775392246301,-500.0,0.00013699,2]
[419808683,1775392246311,-500.0,0.00013699,2]
[419808684,1775392246321,-500.0,0.00013699,2]
[419808685,1775392246331,-500.0,0.00013699,2]
[419808686,1775392246340,-500.0,0.00013699,2]
[419808687,1775392246350,-500.0,0.00013699,2]
[419808688,1775392246360,-500.0,0.00013699,2]
[419808689,1775392246370,-403.93256284,0.00013699,2]
[419808690,1775392246380,-500.0,0.00013699,2]
[419808691,1775392246390,-163.60261744,0.00013699,2]
[419808692,1775392246399,-500.0,0.00013699,2]
[419808693,1775392246409,-500.0,0.00013699,2]
[419808694,1775392246419,-500.0,0.00013699,2]
[419808695,1775392246429,-500.0,0.00013699,2]
[419808696,1775392246439,-339.79133416,0.00013699,2]
[419808698,1775392246449,-500.0,0.00013699,2]
[419808699,1775392246459,-500.0,0.00013699,2]
[419808700,1775392246469,-385.86149772,0.00013699,2]
[419808701,1775392246479,-500.0,0.00013699,2]
[419808702,1775392246489,-500.0,0.00013699,2]
[419808703,1775392246499,-211.04857142,0.00013699,2]
[419808704,1775392246509,-500.0,0.00013699,2]
[419808705,1775392246519,-500.0,0.00013699,2]
[419808706,1775392246529,-500.0,0.00013699,2]
[419808707,1775392246539,-500.0,0.00013699,2]
[419808708,1775392246549,-500.0,0.00013699,2]
[419808709,1775392246559,-500.0,0.00013699,2]
[419808710,1775392246569,-500.0,0.00013699,2]
[419808711,1775392246578,-500.0,0.00013699,2]
[419808712,1775392246588,-500.0,0.00013699,2]
[419808713,1775392246599,-500.0,0.00013699,2]
[419808714,1775392246608,-500.0,0.00013699,2]
[419808715,1775392246619,-160.34417201,0.00013699,2]
[419808716,1775392246629,-598.99606082,0.00013699,2]
[419808717,1775392246639,-500.0,0.00013699,2]
[419808718,1775392246648,-500.0,0.00013699,2]
[419808719,1775392246659,-500.0,0.00013699,2]
[419808720,1775392246669,-500.0,0.00013699,2]
[419808721,1775392246679,-500.0,0.00013699,2]
[419808722,1775392246688,-164.79711181,0.00013699,2]
[419808723,1775392246700,-500.0,0.00013699,2]
[419808724,1775392246711,-500.0,0.00013699,2]
[419808725,1775392246720,-500.0,0.00013699,2]
[419808726,1775392246730,-1000.0,0.00013699,7]
[419808727,1775392246741,-500.0,0.00013699,2]
[419808728,1775392246750,-500.0,0.00013699,2]
[419808729,1775392246760,-160.7467095,0.00013699,2]
[419808730,1775392246770,-500.0,0.00013699,2]
[419808731,1775392246779,-519.03182682,0.00013699,2]
[419808732,1775392246789,-500.0,0.00013699,2]
[419808733,1775392246799,-500.0,0.00013699,2]
[419808734,1775392246808,-500.0,0.00013699,2]
[419808735,1775392246819,-569.20510167,0.00013699,2]
[419808736,1775392246828,-202.64993829,0.00013699,2]
[419808737,1775392246839,-500.0,0.00013699,2]
[419808738,1775392246849,-210.98153295,0.00013699,2]
[419808739,1775392246859,-500.0,0.00013699,2]
[419808740,1775392246869,-500.0,0.00013699,2]
[419808741,1775392246879,-500.0,0.00013699,2]
[419808742,1775392246889,-500.0,0.00013699,2]
[419808743,1775392246898,-162.72924009,0.00013699,2]
[419808744,1775392246908,-500.0,0.00013699,2]
[419808745,1775392246919,-607.20051974,0.00013699,2]
[419808746,1775392246929,-500.0,0.00013699,2]
[419808747,1775392246939,-500.0,0.00013699,2]
[419808748,1775392246949,-312.74353669,0.00013699,2]
[419808749,1775392246959,-515.7358709,0.00013699,2]
[419808750,1775392246970,-168.69935806,0.00013699,2]
[419808751,1775392246980,-500.0,0.00013699,2]
[419808752,1775392246990,-500.50066882,0.00013699,2]
[419808753,1775392247000,-518.73332026,0.00013699,2]
[419808754,1775392247011,-162.81037976,0.00013699,2]
[419808755,1775392247021,-200.0,0.00013699,2]
[419808756,1775392247031,-356.81480063,0.00013699,2]
[419808757,1775392247041,-218.9985,0.000137,2]
[419808758,1775392247051,-162.49,0.000137,2]
[419808759,1775392247061,-475.8,0.00013727,2]
[419808760,1775392247072,-200.0,0.00013836,2]
[419808761,1775392247082,-200.0,0.00013836,2]
[419808762,1775392247092,-1788.38122651,0.00013836,2]
[419808763,1775392247103,-200.0604195,0.000139,2]
[419808764,1775392247112,-8395.69276032,0.00013966,2]
[419808765,1775392247123,-150.0,0.00013973,2]
[419808766,1775392247134,-150.0,0.00013973,2]
[419808767,1775392247144,-150.0,0.00013973,2]
[419808768,1775392247154,-150.0,0.00013973,2]
[419808769,1775392247164,-150.0,0.00013973,2]
[419808770,1775392247174,-150.0,0.00013973,2]
[419808771,1775392247184,-200.0,0.00013974,2]
[419808772,1775392247205,-60000.0,0.00014115,2]
[419808773,1775392247216,-600.0,0.00014178,2]
[419808774,1775392247226,-363.01,0.00014178,2]
[419808775,1775392247237,-481.62,0.00014232,2]
[419808776,1775392247247,-535.47,0.00014246,2]
[419808777,1775392247258,-535.47,0.00014246,2]
[419808778,1775392247268,-535.47,0.00014246,2]
[419808779,1775392247279,-535.47,0.00014246,2]
[419808780,1775392247289,-535.63,0.00014246,2]
[419808781,1775392247299,-751.05,0.00014246,2]
[419808782,1775392247309,-751.05,0.00014246,2]
[419808783,1775392247319,-751.05,0.00014246,2]
[419808784,1775392247330,-751.05,0.00014246,2]
[419808785,1775392247340,-751.19921118,0.00014246,2]
[419808786,1775392247351,-393.00397972,0.00014246,2]
[419808787,1775392247362,-500.0,0.00014246,2]
[419808788,1775392247372,-500.0,0.00014246,2]
[419808789,1775392247383,-277.80362492,0.00014246,2]
[419808790,1775392247393,-712.58,0.00014246,2]
[419808791,1775392247403,-712.58,0.00014246,2]
[419808792,1775392247413,-712.58,0.00014246,2]
[419808793,1775392247424,-712.58,0.00014246,2]
[419808794,1775392247433,-712.7898975,0.00014246,2]
[419808795,1775392247444,-963.2,0.00014246,2]
[419808796,1775392247454,-963.2,0.00014246,2]
[419808797,1775392247465,-963.2,0.00014246,2]
[419808798,1775392247477,-963.2,0.00014246,2]
[419808799,1775392247487,-963.42513851,0.00014246,2]
[419808800,1775392247497,-150.0,0.00014247,2]
[419808801,1775392247509,-150.0,0.00014247,2]
[419808802,1775392247520,-150.0,0.00014247,2]
[419808803,1775392247531,-150.0,0.00014247,2]
[419808804,1775392247542,-150.0,0.00014247,2]
[419808805,1775392247553,-150.0,0.00014247,2]
[419808806,1775392247564,-1000.0,0.00014247,2]
[419808807,1775392247575,-1000.0,0.00014247,2]
[419808808,1775392247586,-308.03873246,0.00014247,2]
[419808809,1775392247596,-627.70930647,0.00014247,2]
[419808810,1775392247607,-1000.0,0.00014247,2]
[419808811,1775392247619,-861.43877969,0.00014247,2]
[419808812,1775392247630,-1000.0,0.00014247,2]
[419808813,1775392247641,-1000.0,0.00014247,2]
[419808814,1775392247651,-1000.0,0.00014247,2]
[419808815,1775392247662,-1000.0,0.00014247,2]
[419808816,1775392247673,-1000.0,0.00014247,2]
[419808817,1775392247689,-1000.0,0.00014247,2]
[419808818,1775392247700,-1000.0,0.00014247,2]
[419808819,1775392247711,-169.74230425,0.00014247,2]
[419808820,1775392247722,-1000.0,0.00014247,2]
[419808821,1775392247733,-1000.0,0.00014247,2]
[419808822,1775392247744,-1000.0,0.00014247,2]
[419808823,1775392247754,-1000.0,0.00014247,2]
[419808824,1775392247765,-180.00096908,0.00014247,2]
[419808825,1775392247776,-1000.0,0.00014247,2]
[419808826,1775392247787,-1000.0,0.00014247,2]
[419808827,1775392247798,-1000.0,0.00014247,2]
[419808828,1775392247809,-1000.0,0.00014247,2]
[419808829,1775392247820,-1000.0,0.00014247,2]
[419808830,1775392247832,-1000.0,0.00014247,2]
[419808831,1775392247844,-1000.0,0.00014247,2]
[419808832,1775392247855,-1000.0,0.00014247,2]
[419808833,1775392247865,-1000.0,0.00014247,2]
[419808834,1775392247876,-1000.0,0.00014247,2]
[419808835,1775392247887,-1000.0,0.00014247,2]
[419808836,1775392247898,-1000.0,0.00014247,2]
[419808837,1775392247909,-1000.0,0.00014247,2]
[419808838,1775392247920,-730.09729929,0.00014247,2]
[419808839,1775392247931,-1000.0,0.00014247,2]
[419808840,1775392247942,-1000.0,0.00014247,2]
[419808841,1775392247953,-1000.0,0.00014247,2]
[419808842,1775392247963,-1000.0,0.00014247,2]
[419808843,1775392247974,-1000.0,0.00014247,2]
[419808844,1775392247985,-189.74788311,0.00014247,2]
[419808845,1775392247996,-500.99241895,0.00014247,2]
[419808846,1775392248007,-1000.0,0.00014247,2]
[419808847,1775392248017,-1000.0,0.00014247,2]
[419808848,1775392248028,-1000.0,0.00014247,2]
[419808849,1775392248040,-790.32775663,0.00014247,2]
[419808850,1775392248051,-743.80429884,0.00014247,2]
[419808851,1775392248062,-500.0,0.00014247,2]
[419808852,1775392248073,-1000.0,0.00014247,2]
[419808853,1775392248084,-1000.0,0.00014247,2]
[419808854,1775392248095,-1000.0,0.00014247,2]
[419808855,1775392248105,-475.8,0.00014255,2]
[419808856,1775392248117,-150.0,0.00014305,2]
[419808857,1775392248127,-150.0,0.00014305,2]
[419808858,1775392248138,-150.0,0.00014306,2]
[419808859,1775392248150,-508.0,0.00014373,3]
[419808860,1775392248161,-200.0,0.00014384,2]
[419808861,1775392248172,-765.22925782,0.00014384,2]
[419808862,1775392248188,-588.99,0.00014389,2]
[419808863,1775392248199,-969.24,0.00014389,2]
[419808864,1775392248211,-150.0,0.000144,2]
[419808865,1775392248222,-150.0,0.000144,2]
[419808866,1775392248235,-150.0,0.000144,2]
[419808867,1775392248642,-150.0,0.000144,2]
[419808868,1775392248652,-150.0,0.000144,2]
[419808869,1775392248662,-150.0,0.000144,2]
[419808870,1775392248670,-150.0,0.000144,2]
[419808871,1775392248679,-150.0,0.000144,2]
[419808872,1775392248688,-150.0,0.000144,2]
[419808873,1775392248698,-150.0,0.000144,2]
[419808874,1775392248707,-150.0,0.000144,2]
[419808875,1775392248716,-150.0,0.000144,2]
[419808876,1775392248725,-150.0,0.000144,2]
[419808877,1775392248735,-150.0,0.000144,2]
[419808878,1775392248745,-150.0,0.00014418,2]
[419808879,1775392248755,-150.0,0.00014421,2]
[419808880,1775392248764,-150.0,0.00014423,2]
[419808881,1775392248775,-150.0,0.00014429,2]
[419808882,1775392248785,-150.0,0.00014429,2]
[419808883,1775392248795,-150.0,0.0001443,2]
[419808884,1775392248804,-150.0,0.00014436,2]
[419808885,1775392248814,-150.0,0.00014442,2]
[419808886,1775392248823,-150.0,0.00014446,2]
[419808887,1775392248832,-150.0,0.00014452,2]
[419808888,1775392248842,-150.0,0.00014453,2]
[419808889,1775392248851,-150.0,0.00014457,2]
[419808890,1775392248860,-150.0,0.00014457,2]
[419808891,1775392248870,-150.0,0.0001446,2]
[419808892,1775392248880,-150.0,0.00014462,2]
[419808893,1775392248889,-150.0,0.00014467,2]
[419808894,1775392248899,-150.0,0.0001447,2]
[419808895,1775392248908,-150.0,0.00014471,2]
[419808896,1775392248918,-150.0,0.00014483,2]
[419808897,1775392248928,-150.0,0.00014486,2]
[419808898,1775392248937,-150.0,0.00014486,2]
[419808899,1775392248948,-150.0,0.00014489,2]
[419808900,1775392248958,-150.0,0.00014491,2]
[419808901,1775392248969,-150.0,0.00014493,2]
[419808902,1775392248978,-150.0,0.00014494,2]
[419808903,1775392248987,-150.0,0.00014503,2]
[419808904,1775392248996,-150.0,0.00014504,2]
[419808905,1775392249006,-150.0,0.00014507,2]
[419808906,1775392249016,-150.0,0.00014514,2]
[419808907,1775392249027,-150.0,0.00014514,2]
[419808908,1775392249037,-150.0,0.00014516,2]
[419808909,1775392249047,-150.0,0.00014521,2]
[419808910,1775392249057,-150.0,0.00014524,2]
[419808911,1775392249069,-150.0,0.00014525,2]
[419808912,1775392249079,-150.0,0.00014533,2]
[419808913,1775392249089,-150.0,0.00014539,2]
[419808914,1775392249099,-150.0,0.00014542,2]
[419808915,1775392249108,-150.0,0.00014543,2]
[419808916,1775392249118,-150.0,0.00014543,2]
[419808917,1775392249127,-150.0,0.00014545,2]
[419808918,1775392249136,-150.0,0.00014551,2]
[419808919,1775392249145,-150.0,0.00014555,2]
[419808920,1775392249155,-150.0,0.0001456,2]
[419808921,1775392249164,-150.0,0.00014562,2]
[419808922,1775392249173,-150.0,0.00014566,2]
[419808923,1775392249183,-150.0,0.00014571,2]
[419808924,1775392249192,-150.0,0.00014571,2]
[419808925,1775392249201,-150.0,0.00014578,2]
[419808926,1775392249210,-150.0,0.00014581,2]
[419808927,1775392249220,-150.0,0.00014586,2]
[419808928,1775392249229,-150.0,0.00014587,2]
[419808929,1775392249238,-150.0,0.00014588,2]
[419808930,1775392249256,-150.0,0.00014596,2]
[419808931,1775392249270,-525.0,0.000146,2]
[419808932,1775392249281,-150.0,0.000146,2]
[419808933,1775392249291,-150.0,0.000146,2]
[419808934,1775392249301,-150.0,0.000146,2]
[419808935,1775392249311,-150.0,0.00014606,2]
[419808936,1775392249321,-150.0,0.00014608,2]
[419808937,1775392249330,-150.0,0.00014609,2]
[419808938,1775392249341,-150.0,0.00014611,2]
[419808939,1775392249351,-150.0,0.00014613,2]
[419808940,1775392249360,-150.0,0.00014629,2]
[419808941,1775392249370,-150.0,0.00014629,2]
[419808942,1775392249380,-150.0,0.00014629,2]
[419808943,1775392249390,-150.0,0.00014631,2]
[419808944,1775392249400,-150.0,0.00014632,2]
[419808945,1775392249410,-150.0,0.00014642,2]
[419808946,1775392249420,-150.0,0.00014649,2]
[419808947,1775392249430,-150.0,0.00014649,2]
[419808948,1775392249440,-150.0,0.00014655,2]
[419808949,1775392249450,-150.0,0.00014657,2]
[419808950,1775392249460,-150.0,0.00014657,2]
[419808951,1775392249470,-150.0,0.00014658,2]
[419808952,1775392249480,-150.0,0.00014667,2]
[419808953,1775392249490,-150.0,0.00014667,2]
[419808954,1775392249500,-150.0,0.0001467,2]
[419808955,1775392249510,-150.0,0.00014672,2]
[419808956,1775392249521,-150.0,0.00014678,2]
[419808957,1775392249530,-150.0,0.00014682,2]
[419808958,1775392249540,-150.0,0.00014684,2]
[419808959,1775392249550,-150.0,0.00014686,2]
[419808960,1775392249559,-150.0,0.00014686,2]
[419808961,1775392249569,-150.0,0.00014691,2]
[419808962,1775392249579,-1613.0,0.00014701,2]
[419808963,1775392249588,-6453.0,0.00014701,2]
[419808964,1775392249598,-150.0,0.00014701,2]
[419808965,1775392249608,-150.0,0.00014702,2]
[419808966,1775392249618,-150.0,0.00014702,2]
[419808967,1775392249630,-2129.0,0.00014705,2]
[419808968,1775392249640,-150.0,0.0001471,2]
[419808969,1775392249650,-150.0,0.00014712,2]
[419808970,1775392249660,-150.0,0.00014714,2]
[419808971,1775392249670,-150.0,0.00014714,2]
[419808972,1775392249680,-150.0,0.0001472,2]
[419808973,1775392249691,-150.0,0.0001472,2]
[419808974,1775392249702,-150.0,0.00014725,2]
[419808975,1775392249711,-150.0,0.00014732,2]
[419808976,1775392249722,-150.0,0.00014732,2]
[419808977,1775392249733,-150.0,0.00014733,2]
[419808978,1775392249743,-150.0,0.00014738,2]
[419808979,1775392249753,-150.0,0.00014743,2]
[419808980,1775392249767,-150.0,0.00014743,2]
[419808981,1775392249777,-150.0,0.00014748,2]
[419808982,1775392249787,-150.0,0.00014753,2]
[419808983,1775392249798,-150.0,0.00014756,2]
[419808984,1775392249808,-150.0,0.00014761,2]
[419808985,1775392249819,-150.0,0.00014762,2]
[419808986,1775392249829,-150.0,0.00014771,2]
[419808987,1775392249839,-150.0,0.00014771,2]
[419808988,1775392249849,-150.0,0.00014771,2]
[419808989,1775392249860,-150.0,0.00014773,2]
[419808990,1775392249870,-150.0,0.00014774,2]
[419808991,1775392249880,-150.0,0.00014776,2]
[419808992,1775392249892,-160.0,0.00014789,2]
[419808993,1775392249903,-150.0,0.00014791,2]
[419808994,1775392249913,-150.0,0.00014792,2]
[419808995,1775392249923,-150.0,0.00014794,2]
[419808996,1775392249933,-1227.692277,0.00014795,2]
[419808997,1775392249943,-1515.96545288,0.00014795,2]
[419808998,1775392249953,-953.31303788,0.00014795,2]
[419808999,1775392249963,-1500.0,0.00014795,2]
[419809000,1775392249973,-1500.0,0.00014795,2]
[419809001,1775392249983,-1503.24663382,0.00014795,2]
[419809002,1775392249994,-1500.0,0.00014795,2]
[419809003,1775392250004,-1500.0,0.00014795,2]
[419809004,1775392250013,-1318.06583411,0.00014795,2]
[419809005,1775392250023,-1500.0,0.00014795,2]
[419809006,1775392250033,-1500.0,0.00014795,2]
[419809007,1775392250044,-1500.0,0.00014795,2]
[419809008,1775392250054,-1500.0,0.00014795,2]
[419809009,1775392250065,-1500.0,0.00014795,2]
[419809010,1775392250075,-1500.0,0.00014795,2]
[419809011,1775392250086,-1500.0,0.00014795,2]
[419809012,1775392250096,-1500.0,0.00014795,2]
[419809013,1775392250107,-1500.0,0.00014795,2]
[419809014,1775392250118,-1500.0,0.00014795,2]
[419809015,1775392250128,-1500.0,0.00014795,2]